fUST/lending_fUST_20250321
["ID","MTS","AMOUNT","RATE_DAILY","PERIOD"]
[356492892,1742536238635,-500.0,0.00023699,2]
[356492893,1742536238645,-517.51742061,0.00023699,2]
[356492894,1742536238654,-500.0,0.00023699,2]
[356492895,1742536238664,-500.0,0.00023699,2]
[356492896,1742536238674,-500.0,0.00023699,2]
[356492897,1742536238683,-500.0,0.00023699,2]
[356492898,1742536238692,-500.0,0.00023699,2]
[356492899,1742536238702,-500.0,0.00023699,2]
[356492900,1742536238711,-500.0,0.00023699,2]
[356492901,1742536238721,-500.0,0.00023699,2]
[356492902,1742536238730,-500.0,0.00023699,2]
[356492903,1742536238740,-500.0,0.00023699,2]
[356492904,1742536238749,-500.0,0.00023699,2]
[356492905,1742536238759,-500.0,0.00023699,2]
[356492906,1742536238768,-500.0,0.00023699,2]
[356492907,1742536238777,-500.0,0.00023699,2]
[356492908,1742536238786,-500.0,0.00023699,2]
[356492909,1742536238795,-500.0,0.00023699,2]
[356492910,1742536238806,-500.0,0.00023699,2]
[356492911,1742536238815,-500.0,0.00023699,2]
[356492912,1742536238824,-649.33632229,0.000237,3]
[356492913,1742536238834,-649.33632205,0.000237,3]
[356492914,1742536238843,-649.33632205,0.000237,3]
[356492915,1742536238852,-649.33632205,0.000237,3]
[356492916,1742536238862,-649.33632205,0.000237,3]
[356492917,1742536238877,-649.33632205,0.000237,3]
[356492918,1742536238887,-649.33632205,0.000237,3]
[356492919,1742536238896,-649.33632205,0.00023762,3]
[356492920,1742536238905,-250.0,0.00024001,2]
[356492921,1742536238916,-2608.612,0.00024225,2]
[356492922,1742536238925,-274.0472849,0.00024225,2]
[356492923,1742536238934,-649.33632205,0.00024314,3]
[356492924,1742536238944,-275.38194892,0.00024671,2]
[356492925,1742536238955,-649.33632205,0.00024866,4]
[356492926,1742536238965,-500.0,0.0002495,2]
[356492927,1742536238974,-500.0,0.0002495,2]
[356492928,1742536238983,-500.0,0.0002495,2]
[356492929,1742536238992,-500.0,0.0002495,2]
[356492930,1742536239002,-500.0,0.0002495,2]
[356492931,1742536239011,-500.0,0.0002495,2]
[356492932,1742536239020,-500.0,0.000251,2]
[356492933,1742536239030,-500.0,0.000251,2]
[356492934,1742536239039,-500.0,0.000251,2]
[356492935,1742536239048,-649.33632205,0.00025417,4]
[356492936,1742536239057,-3000.0,0.00025566,2]
[356492937,1742536239066,-4538.68473201,0.00025668,2]
[356492938,1742536239079,-17189.34901759,0.00025668,2]
[356492944,1742536240972,-0.01065695,0.00024675,7]
[356492954,1742536243741,-150.81565476,0.00022795,2]
[356492955,1742536243752,-150.98934305,0.00024675,7]
[356492956,1742536243761,-300.0,0.00025411,2]
[356492957,1742536243770,-4185.51047266,0.00025668,2]
[356492978,1742536246478,-14628.67815466,0.00025668,2]
[356492980,1742536246538,-452.07000005,0.00025668,2]
[356492981,1742536328132,-155.4504,0.000199,30]
[356492983,1742536428587,-48.38987914,0.000199,30]
[356492984,1742536428610,-101.61012086,0.0002,3]
[356493027,1742537432774,-58.38987914,0.0002,3]
[356493028,1742537432784,-150.0,0.00023037,2]
[356493029,1742537432794,-253.0,0.00023268,2]
[356493030,1742537432804,-24900.0,0.00023269,2]
[356493031,1742537432814,-150.81565474,0.0002359,2]
[356493032,1742537432824,-500.0,0.0002369,2]
[356493033,1742537432834,-500.0,0.0002369,2]
[356493034,1742537432844,-500.0,0.0002369,2]
[356493035,1742537432855,-500.0,0.0002369,2]
[356493036,1742537432865,-500.0,0.0002369,2]
[356493037,1742537432881,-500.0,0.0002369,2]
[356493038,1742537432896,-500.0,0.0002369,2]
[356493039,1742537432907,-500.0,0.0002369,2]
[356493040,1742537432917,-500.0,0.0002369,2]
[356493041,1742537432927,-500.0,0.0002369,2]
[356493042,1742537432938,-500.0,0.0002369,2]
[356493043,1742537432949,-500.0,0.0002369,2]
[356493044,1742537432959,-500.0,0.0002369,2]
[356493045,1742537432970,-500.0,0.0002369,2]
[356493046,1742537432981,-500.0,0.0002369,2]
[356493047,1742537432991,-500.0,0.0002369,2]
[356493048,1742537433002,-500.0,0.0002369,2]
[356493049,1742537433013,-500.0,0.0002369,2]
[356493050,1742537433024,-500.0,0.0002369,2]
[356493051,1742537433035,-500.0,0.0002369,2]
[356493052,1742537433047,-500.0,0.0002369,2]
[356493053,1742537433058,-500.0,0.0002369,2]
[356493054,1742537433069,-500.0,0.0002369,2]
[356493055,1742537433079,-500.0,0.0002369,2]
[356493056,1742537433091,-500.0,0.0002369,2]
[356493057,1742537433103,-500.0,0.0002369,2]
[356493058,1742537433114,-500.0,0.0002369,2]
[356493059,1742537433124,-500.0,0.0002369,2]
[356493060,1742537433135,-500.0,0.0002369,2]
[356493061,1742537433146,-500.0,0.0002369,2]
[356493062,1742537433156,-500.0,0.0002369,2]
[356493063,1742537433167,-500.0,0.0002369,2]
[356493064,1742537433178,-500.0,0.0002369,2]
[356493065,1742537433190,-500.0,0.0002369,2]
[356493066,1742537433200,-400.01629614,0.0002369,2]
[356493067,1742537433215,-99.98370386,0.0002369,2]
[356493068,1742537433225,-500.0,0.0002369,2]
[356493069,1742537433236,-500.0,0.0002369,2]
[356493070,1742537433246,-548.11545004,0.0002369,2]
[356493071,1742537433257,-294.82112476,0.0002369,2]
[356493072,1742537433388,-205.17887524,0.0002369,2]
[356493073,1742537433398,-476.85218268,0.0002369,2]
[356493074,1742537433415,-23.14781732,0.0002369,2]
[356493075,1742537433427,-500.0,0.0002369,2]
[356493076,1742537433437,-500.0,0.0002369,2]
[356493077,1742537433448,-264.60080267,0.0002369,2]
[356493546,1742538640128,-500.0,0.00021554,2]
[356493547,1742538640138,-160.4313044,0.00022369,2]
[356493548,1742538640148,-11780.3883193,0.00022681,2]
[356493549,1742538640158,-500.0,0.00022688,2]
[356493550,1742538640167,-500.0,0.00023,21]
[356493551,1742538640177,-176.9714474,0.00023094,2]
[356493552,1742538640186,-537.46386899,0.0002358,2]
[356493553,1742538640196,-500.0,0.00023679,2]
[356493554,1742538640206,-500.0,0.00023679,2]
[356493555,1742538640216,-500.0,0.00023679,2]
[356493556,1742538640226,-432.11298686,0.00023679,2]
[356493557,1742538640236,-500.0,0.00023679,2]
[356493558,1742538640246,-500.0,0.00023679,2]
[356493559,1742538640256,-500.0,0.00023679,2]
[356493560,1742538640265,-500.0,0.00023679,2]
[356493561,1742538640275,-500.0,0.00023679,2]
[356493562,1742538640285,-500.0,0.00023679,2]
[356493563,1742538640294,-500.0,0.00023679,2]
[356493564,1742538640304,-500.0,0.00023679,2]
[356493565,1742538640313,-500.0,0.00023679,2]
[356493566,1742538640323,-500.0,0.00023679,2]
[356493567,1742538640332,-500.0,0.00023679,2]
[356493568,1742538640342,-500.0,0.00023679,2]
[356493569,1742538640351,-500.0,0.00023679,2]
[356493570,1742538640360,-500.0,0.00023679,2]
[356493571,1742538640370,-500.0,0.00023679,2]
[356493572,1742538640380,-500.0,0.00023679,2]
[356493573,1742538640390,-500.0,0.00023679,2]
[356493574,1742538640399,-500.0,0.00023679,2]
[356493575,1742538640409,-500.0,0.00023679,2]
[356493576,1742538640418,-500.0,0.00023679,2]
[356493577,1742538640428,-500.0,0.00023679,2]
[356493578,1742538640437,-500.0,0.00023679,2]
[356493579,1742538640447,-500.0,0.00023679,2]
[356493580,1742538640457,-500.0,0.00023679,2]
[356493581,1742538640466,-500.0,0.00023679,2]
[356493582,1742538640476,-500.0,0.00023679,2]
[356493583,1742538640485,-500.0,0.00023679,2]
[356493584,1742538640495,-500.0,0.00023679,2]
[356493585,1742538640504,-500.0,0.00023679,2]
[356493586,1742538640514,-500.0,0.00023679,2]
[356493587,1742538640524,-500.0,0.00023679,2]
[356493588,1742538640533,-500.0,0.00023679,2]
[356493589,1742538640543,-500.0,0.00023679,2]
[356493590,1742538640553,-500.0,0.00023679,2]
[356493591,1742538640563,-500.0,0.00023679,2]
[356493592,1742538640572,-500.0,0.00023679,2]
[356493593,1742538640582,-500.0,0.00023679,2]
[356493594,1742538640591,-500.0,0.00023679,2]
[356493595,1742538640600,-572.75383516,0.00023679,2]
[356493596,1742538640610,-500.0,0.00023679,2]
[356493597,1742538640619,-500.0,0.00023679,2]
[356493598,1742538640628,-500.0,0.00023679,2]
[356493599,1742538640638,-500.0,0.00023679,2]
[356493600,1742538640648,-500.0,0.00023679,2]
[356493601,1742538640657,-500.0,0.00023679,2]
[356493602,1742538640667,-444.58061453,0.00023822,2]
[356493603,1742538640676,-739.73287125,0.000239,3]
[356493604,1742538640686,-739.73287121,0.00024383,3]
[356493605,1742538640695,-276.23929991,0.00024499,2]
[356493606,1742538640705,-193.36750993,0.00024499,2]
[356493607,1742538640714,-49146.92431882,0.000245,4]
[356493608,1742538640724,-500.0,0.000246,2]
[356493609,1742538640734,-500.0,0.000246,2]
[356493610,1742538640743,-500.0,0.000246,2]
[356493611,1742538640753,-500.0,0.000246,2]
[356493612,1742538640765,-500.0,0.000246,2]
[356493613,1742538640774,-500.0,0.000246,2]
[356493614,1742538640784,-500.0,0.000246,2]
[356493615,1742538640794,-500.0,0.000246,2]
[356493616,1742538640804,-739.73287121,0.00024866,4]
[356493617,1742538640813,-2020.0,0.00025,21]
[356493618,1742538640823,-739.73287121,0.00025348,4]
[356493619,1742538640833,-1728.85900244,0.00025368,2]
[356493620,1742538640842,-151.0,0.00025453,2]
[356493621,1742538640852,-216.3424345,0.00025458,2]
[356493622,1742538640862,-105900.52811304,0.00025468,2]
[356493623,1742538640910,-31230.13990471,0.00025468,2]
[356493644,1742538643146,-537.46386895,0.00025207,2]
[356493645,1742538643156,-2281.79269779,0.00025468,2]
[356493646,1742538643170,-8315.1882631,0.00025468,2]
[356493702,1742539838016,-198.66269117,0.00023188,2]
[356493703,1742539838029,-555.48151761,0.00024801,2]
[356493708,1742539840193,12910.0,0.000175,3]
[356493716,1742539846171,-684.71555979,0.00024801,2]
[356493717,1742539846181,-345.0,0.00025,120]
[356493718,1742539846190,-499.4483171,0.00025026,4]
[356493719,1742539846200,-3000.0,0.00025368,2]
[356493720,1742539846209,-836.21035078,0.00025549,2]
[356493721,1742539846219,-500.0,0.00025647,2]
[356493722,1742539846228,-500.0,0.00025647,2]
[356493723,1742539846238,-500.0,0.00025647,2]
[356493724,1742539846247,-500.0,0.00025647,2]
[356493725,1742539846256,-500.0,0.00025647,2]
[356493726,1742539846266,-500.0,0.00025647,2]
[356493727,1742539846275,-500.0,0.00025647,2]
[356493728,1742539846285,-607.27538352,0.00025647,2]
[356493729,1742539846295,-500.0,0.00025647,2]
[356493730,1742539846304,-500.0,0.00025647,2]
[356493731,1742539846313,-500.0,0.00025647,2]
[356493732,1742539846322,-500.0,0.00025647,2]
[356493733,1742539846331,-500.0,0.00025647,2]
[356493734,1742539846341,-500.0,0.00025647,2]
[356493735,1742539846350,-500.0,0.00025647,2]
[356493736,1742539846360,-500.0,0.00025647,2]
[356493737,1742539846370,-500.0,0.00025647,2]
[356493738,1742539846379,-500.0,0.00025647,2]
[356493739,1742539846388,-500.0,0.00025647,2]
[356493740,1742539846397,-500.0,0.00025647,2]
[356493741,1742539846407,-500.0,0.00025647,2]
[356493742,1742539846416,-500.0,0.00025647,2]
[356493743,1742539846426,-500.0,0.00025647,2]
[356493744,1742539846435,-500.0,0.00025647,2]
[356493745,1742539846445,-500.0,0.00025647,2]
[356493746,1742539846454,-500.0,0.00025647,2]
[356493747,1742539846463,-500.0,0.00025647,2]
[356493748,1742539846473,-500.0,0.00025647,2]
[356493749,1742539846483,-500.0,0.00025647,2]
[356493750,1742539846492,-500.0,0.00025647,2]
[356493751,1742539846501,-500.0,0.00025647,2]
[356493752,1742539846510,-500.0,0.00025647,2]
[356493753,1742539846519,-500.0,0.00025647,2]
[356493754,1742539846529,-500.0,0.00025647,2]
[356493755,1742539846539,-500.0,0.00025647,2]
[356493756,1742539846548,-500.0,0.00025647,2]
[356493757,1742539846558,-500.0,0.00025647,2]
[356493758,1742539846567,-500.0,0.00025647,2]
[356493759,1742539846577,-500.0,0.00025647,2]
[356493760,1742539846587,-500.0,0.00025647,2]
[356493761,1742539846596,-500.0,0.0002565,2]
[356493762,1742539846605,-500.0,0.0002565,2]
[356493763,1742539846615,-501.16215976,0.0002565,2]
[356493764,1742539846624,-500.0,0.0002575,2]
[356493765,1742539846633,-500.0,0.0002575,2]
[356493766,1742539846643,-500.0,0.0002575,2]
[356493767,1742539846652,-500.0,0.00025767,2]
[356493768,1742539846662,-500.0,0.00025767,2]
[356493769,1742539846671,-500.0,0.00025767,2]
[356493770,1742539846681,-216.34243452,0.0002579,2]
[356493771,1742539846690,-193.78761192,0.00025799,2]
[356493772,1742539846700,-65807.73123705,0.000258,2]
[356493773,1742539846712,-42111.64537246,0.000258,2]
[356493774,1742539942718,-179.54716099,0.00018177,2]
[356493775,1742539945559,-255.99154232,0.00018177,2]
[356493776,1742539947719,-223.57034363,0.00018177,2]
[356493777,1742539950106,-176.40567201,0.00017995,3]
[356493791,1742540132905,-240.89095306,0.00018177,2]
[356493792,1742540132930,-202.37592937,0.00018177,2]
[356493793,1742540234951,-220.40121909,0.00016438,2]
[356493794,1742540286108,-63.28978091,0.00016438,2]
[356493795,1742540286132,-87.71021909,0.00017995,2]
[356493798,1742540317699,-220.0,0.00018176,2]
[356493799,1742540317723,-2.50413999,0.00018177,2]
[356493800,1742540343278,-150.0,0.00018176,2]
[356493801,1742540402174,-300.0,0.00018177,2]
[356493807,1742540643191,-182.17,0.00018176,2]
[356493808,1742540701918,-223.96826078,0.00018177,2]
[356493809,1742540763270,-216.57853844,0.00018176,2]
[356493810,1742540822450,-171.15166986,0.00018177,2]
[356493811,1742540822475,-68.73620007,0.00018177,2]
[356493812,1742540882583,-198.30041947,0.00018177,2]
[356493813,1742540890100,-196.96982004,0.00017995,2]
[356493831,1742540944341,-93.16754133,0.00017995,2]
[356493832,1742540944367,-65.85636694,0.00018176,2]
[356493833,1742540948432,-234.14363306,0.00018176,2]
[356493834,1742540948458,-15.85636694,0.00018176,2]
[356493840,1742541005447,-207.7970078,0.00018176,2]
[356493855,1742541032373,-132.34035357,0.00018176,2]
[356493856,1742541032383,-283.0,0.00018176,2]
[356493857,1742541032393,-632.96338046,0.00018177,2]
[356493858,1742541032402,-900.0,0.00018177,2]
[356493859,1742541032412,-900.0,0.00018177,2]
[356493860,1742541032421,-900.0,0.00018177,2]
[356493861,1742541032431,-900.0,0.00018177,2]
[356493862,1742541032441,-500.0,0.00018177,2]
[356493863,1742541032450,-900.0,0.00018177,2]
[356493864,1742541032460,-500.0,0.00018177,2]
[356493865,1742541032470,-900.0,0.00018177,2]
[356493866,1742541032484,-500.0,0.00018177,2]
[356493867,1742541032493,-500.0,0.00018177,2]
[356493868,1742541032503,-900.0,0.00018177,2]
[356493869,1742541032513,-500.0,0.00018177,2]
[356493870,1742541032523,-900.0,0.00018177,2]
[356493872,1742541032533,-500.0,0.00018177,2]
[356493874,1742541032543,-700.0,0.00018177,2]
[356493875,1742541032554,-900.0,0.00018177,2]
[356493876,1742541032565,-500.0,0.00018177,2]
[356493877,1742541032575,-1604.86930977,0.00018177,2]
[356493878,1742541032585,-500.0,0.00018177,2]
[356493879,1742541032595,-500.0,0.00018177,2]
[356493880,1742541032605,-500.0,0.00018177,2]
[356493881,1742541032615,-700.0,0.00018177,2]
[356493882,1742541032624,-500.0,0.00018177,2]
[356493883,1742541032635,-501.79799218,0.00018177,2]
[356493884,1742541032644,-300.0,0.00018177,2]
[356493885,1742541032653,-928.55563071,0.000235,3]
[356493886,1742541032663,-928.55563049,0.000235,3]
[356493887,1742541032673,-928.55563049,0.000235,3]
[356493888,1742541032682,-928.55563049,0.000235,3]
[356493889,1742541032693,-928.55563049,0.000235,3]
[356493890,1742541032702,-928.55563049,0.000235,3]
[356493891,1742541032711,-928.55563049,0.000235,3]
[356493892,1742541032721,-928.55563049,0.00023762,3]
[356493893,1742541032731,-928.55563049,0.00024314,3]
[356493894,1742541032741,-928.55563049,0.00024866,4]
[356493895,1742541032751,-374.5862378,0.00025026,4]
[356493896,1742541032760,-928.55563049,0.00025417,4]
[356493897,1742541032770,-500.0,0.00025695,2]
[356493898,1742541032779,-500.0,0.00025695,2]
[356493899,1742541032789,-500.0,0.00025695,2]
[356493900,1742541032798,-500.0,0.00025695,2]
[356493901,1742541032808,-410.72753835,0.00025695,2]
[356493902,1742541032818,-500.0,0.00025695,2]
[356493903,1742541032827,-202.35205194,0.00025699,2]
[356493904,1742541032838,-3000.0,0.000257,2]
[356493905,1742541032847,-762.99543326,0.000257,2]
[356493909,1742541038118,-457.7970078,0.00017994,2]
[356493910,1742541038128,-3000.0,0.000256,2]
[356493911,1742541038138,-500.0,0.00025694,2]
[356493912,1742541038148,-500.0,0.00025694,2]
[356493913,1742541038157,-500.0,0.00025694,2]
[356493914,1742541038167,-323.41417093,0.00025694,2]
[356493915,1742541038177,-500.0,0.00025694,2]
[356493916,1742541038186,-500.0,0.00025694,2]
[356493917,1742541038195,-500.0,0.00025694,2]
[356493918,1742541038204,-500.0,0.00025694,2]
[356493919,1742541038214,-500.0,0.00025694,2]
[356493920,1742541038224,-500.0,0.00025694,2]
[356493921,1742541038233,-500.0,0.00025694,2]
[356493922,1742541038243,-500.0,0.00025694,2]
[356493923,1742541038253,-500.0,0.00025694,2]
[356493924,1742541038263,-500.0,0.00025694,2]
[356493925,1742541038273,-500.0,0.00025694,2]
[356493926,1742541038282,-412.96731793,0.00025694,2]
[356493927,1742541038293,-500.0,0.00025694,2]
[356493928,1742541038303,-500.0,0.00025694,2]
[356493929,1742541038313,-41842.3684724,0.000257,2]
[356493988,1742541040862,-0.00868568,0.000257,2]
[356493989,1742541040886,-16712.92420092,0.000257,2]
[356493990,1742541040898,-828.08946155,0.000257,2]
[356494198,1742541145176,-155.4504,0.00018177,2]
[356494199,1742541152875,-154.4112854,0.00018177,2]
[356494200,1742541190582,-154.4112854,0.00017995,3]
[356494201,1742541190604,-10.04479761,0.00018076,2]
[356494202,1742541243829,-164.45608301,0.00017895,2]
[356494203,1742541243853,-39.38419613,0.00018076,2]
[356494204,1742541306159,-106.02140626,0.00018076,2]
[356494205,1742541306182,-43.97859374,0.00018176,2]
[356494206,1742541364240,-186.8748709,0.00018176,2]
[356494207,1742541424606,-150.0,0.00018176,2]
[356494208,1742541442705,-150.0,0.00018176,2]
[356494209,1742541442730,-150.0,0.00018177,2]
[356494210,1742541446215,-150.0,0.00018177,2]
[356494211,1742541455785,-150.0,0.00017995,2]
[356494212,1742541484720,-189.0,0.00018176,2]
[356494213,1742541743415,-296.91717984,0.00018,120]
[356494214,1742541743438,-6.25282016,0.00018177,2]
[356494215,1742541745806,-218.86736841,0.00018177,2]
[356494216,1742541751448,-300.0,0.00018177,2]
[356494217,1742541996399,191.8377809,0.00010959,2]
[356494263,1742542238276,-500.0,0.00018177,2]
[356494264,1742542238286,-500.0,0.00018177,2]
[356494266,1742542238295,-500.0,0.00018177,2]
[356494268,1742542238305,-500.0,0.00018177,2]
[356494269,1742542238315,-500.0,0.00018177,2]
[356494270,1742542238325,-500.0,0.00018177,2]
[356494271,1742542238334,-500.0,0.00018177,2]
[356494272,1742542238349,-500.0,0.00018177,2]
[356494273,1742542238358,-500.0,0.00018177,2]
[356494274,1742542238369,-500.0,0.00018177,2]
[356494275,1742542238379,-700.0,0.00018177,2]
[356494276,1742542238389,-500.0,0.00018177,2]
[356494277,1742542238399,-500.0,0.00018177,2]
[356494278,1742542238408,-500.0,0.00018177,2]
[356494279,1742542238422,-500.0,0.00018177,2]
[356494280,1742542238432,-590.1383146,0.00018177,2]
[356494281,1742542238445,-500.0,0.00018177,2]
[356494282,1742542238456,-774.87981143,0.00018177,2]
[356494283,1742542238466,-156.99,0.000186,2]
[356494284,1742542238476,-724.1329575,0.0002251,2]
[356494285,1742542238485,-248.0,0.00023,2]
[356494286,1742542238494,-155.0,0.00023,2]
[356494287,1742542238504,-10000.0,0.0002328,2]
[356494288,1742542238513,-1197.2799396,0.000234,2]
[356494289,1742542238522,-500.0,0.00023499,2]
[356494290,1742542238532,-500.0,0.00023499,2]
[356494291,1742542238542,-500.0,0.00023499,2]
[356494292,1742542238550,-500.0,0.00023499,2]
[356494293,1742542238560,-500.0,0.00023499,2]
[356494294,1742542238569,-500.0,0.00023499,2]
[356494295,1742542238579,-500.0,0.00023499,2]
[356494296,1742542238589,-500.0,0.00023499,2]
[356494297,1742542238598,-206.72884339,0.00023499,2]
[356494298,1742542238607,-500.0,0.00023499,2]
[356494299,1742542238616,-500.0,0.00023499,2]
[356494300,1742542238626,-500.0,0.00023499,2]
[356494301,1742542238637,-199.5229411,0.00023499,2]
[356494302,1742542238646,-500.0,0.00023499,2]
[356494303,1742542238655,-500.0,0.00023499,2]
[356494304,1742542238665,-500.0,0.00023499,2]
[356494305,1742542238675,-500.0,0.00023499,2]
[356494306,1742542238684,-500.0,0.00023499,2]
[356494307,1742542238694,-508.82170351,0.00023499,2]
[356494308,1742542238704,-160.0,0.000235,3]
[356494309,1742542238713,-160.0,0.000235,3]
[356494310,1742542238722,-1923.62438465,0.000235,3]
[356494311,1742542238731,-1923.62438443,0.000235,3]
[356494312,1742542238741,-1000.79454867,0.00023547,2]
[356494313,1742542238750,-1923.62438443,0.00023797,3]
[356494314,1742542238759,-3877.8336259,0.00023801,2]
[356494315,1742542238768,-160.0,0.00024,10]
[356494316,1742542238777,-1923.62438443,0.00024245,3]
[356494317,1742542238787,-200.0,0.00024658,2]
[356494318,1742542238796,-380.0,0.00024658,2]
[356494319,1742542238806,-500.0,0.00024658,2]
[356494320,1742542238815,-500.0,0.00024658,2]
[356494321,1742542238825,-368.32525326,0.00024658,2]
[356494322,1742542238834,-1923.62438443,0.00024693,3]
[356494323,1742542238844,-834.1406796,0.00024693,3]
[356494324,1742542238853,-160.0,0.00024693,3]
[356494325,1742542238862,-418.02116171,0.00024693,3]
[356494326,1742542238872,-322.1607868,0.00025026,4]
[356494327,1742542238883,-1197.27993954,0.00025053,2]
[356494328,1742542238895,-1923.62438443,0.00025141,4]
[356494329,1742542238904,-1152.5726683,0.00025499,2]
[356494330,1742542238914,-206.39657546,0.00025579,2]
[356494331,1742542238925,-10693.31114981,0.0002558,2]
[356494332,1742542238938,-69391.76681738,0.0002558,2]
[356494337,1742542240858,-0.00579178,0.0002558,2]
[356494356,1742542243644,-3772.90716133,0.0002558,2]
[356494357,1742542243654,-1923.62438443,0.0002559,4]
[356494358,1742542243663,-151.0,0.0002559,7]
[356494359,1742542243673,-151.0,0.0002559,2]
[356494360,1742542243683,-199.926152,0.0002559,2]
[356494361,1742542243692,-222000.0,0.0002559,2]
[356494362,1742542243701,-203.84027914,0.00025599,30]
[356494363,1742542243711,-3000.0,0.000256,2]
[356494364,1742542243720,-151.0,0.00025685,2]
[356494365,1742542243729,-151.0,0.000257,7]
[356494366,1742542243739,-194.917247,0.000257,7]
[356494367,1742542243748,-151.0,0.000257,7]
[356494368,1742542243758,-20964.4977301,0.00025843,2]
[356494369,1742542243767,-151.0,0.00025853,7]
[356494370,1742542243777,-151.0,0.00025853,2]
[356494371,1742542243786,-151.0,0.00025853,7]
[356494372,1742542243795,-9187.42733585,0.00025853,2]
[356494373,1742542243805,-93149.99999991,0.00026,30]
[356494374,1742542243815,-418.02116171,0.00026,30]
[356494375,1742542243825,-151.0,0.00026,7]
[356494376,1742542243834,-151.0,0.00026,2]
[356494377,1742542243844,-151.0,0.00026,7]
[356494378,1742542243853,-192.0,0.00026,2]
[356494379,1742542243862,-1923.62438443,0.00026038,4]
[356494380,1742542243871,-192.0,0.00026164,2]
[356494381,1742542243880,-156.587,0.00026233,2]
[356494382,1742542243893,-1923.62438443,0.00026486,4]
[356494383,1742542243902,-500.0,0.00026548,10]
[356494384,1742542243911,-500.0,0.00026548,10]
[356494385,1742542243922,-500.0,0.00026548,10]
[356494386,1742542243932,-500.0,0.00026548,10]
[356494387,1742542243942,-500.0,0.00026548,10]
[356494388,1742542243951,-500.0,0.00026548,10]
[356494389,1742542243961,-500.0,0.00026548,10]
[356494390,1742542243970,-500.0,0.00026548,10]
[356494391,1742542243980,-500.0,0.00026548,10]
[356494392,1742542243990,-500.0,0.00026548,10]
[356494393,1742542244000,-500.0,0.00026548,10]
[356494394,1742542244010,-500.0,0.00026548,10]
[356494395,1742542244019,-500.0,0.00026548,10]
[356494396,1742542244029,-500.0,0.00026548,10]
[356494397,1742542244039,-500.0,0.00026548,10]
[356494398,1742542244049,-500.0,0.00026548,10]
[356494399,1742542244059,-500.0,0.00026548,10]
[356494400,1742542244068,-500.0,0.00026548,10]
[356494401,1742542244077,-500.0,0.00026548,10]
[356494402,1742542244086,-623.24174459,0.00026548,10]
[356494403,1742542244096,-834.1406796,0.00026548,10]
[356494404,1742542244105,-418.02116171,0.00026548,10]
[356494405,1742542244114,-1197.27993954,0.00026705,2]
[356494406,1742542244123,-162.380719,0.00026781,2]
[356494407,1742542244133,-500.0,0.00026914,2]
[356494408,1742542244143,-500.0,0.00026914,2]
[356494409,1742542244153,-501.5992082,0.00026914,2]
[356494410,1742542244163,-425.80356497,0.00026914,2]
[356494411,1742542244173,-563.53378698,0.00026914,2]
[356494412,1742542244183,-166.51819303,0.00026914,2]
[356494413,1742542244192,-1923.62438443,0.00026934,4]
[356494414,1742542244202,-501.32539401,0.0002698,2]
[356494415,1742542244211,-501.46087905,0.0002698,2]
[356494416,1742542244220,-504.93805266,0.0002698,2]
[356494417,1742542244230,-754.89455395,0.00027,2]
[356494418,1742542244239,-192.0,0.00027185,2]